fUSD/lending_fUSD_20260407
["ID","MTS","AMOUNT","RATE_DAILY","PERIOD"]
[419968398,1775571734294,-2516.97337162,0.00012955,2]
[419968399,1775571734407,-4966.06325676,0.00012955,2]
[419968400,1775571734472,-864.65573411,0.00012966,2]
[419968401,1775571734502,-1022.01771679,0.00012972,2]
[419968402,1775571734557,-337.88273308,0.00012972,2]
[419968403,1775571734591,-4966.06325676,0.00012972,2]
[419968404,1775571734631,-2382.62100607,0.00012972,2]
[419968405,1775571734664,-215.415209,0.00013007,2]
[419968406,1775571734695,-150.0,0.00013008,2]
[419968407,1775571734727,-265.431,0.00013009,2]
[419968408,1775571734857,-5109.94,0.00013009,2]
[419968409,1775571734867,-57.81282051,0.00013009,2]
[419968410,1775571734899,-442.18717949,0.00013009,2]
[419968411,1775571734931,-250.9346766,0.00013009,2]
[419968412,1775571734968,-500.0,0.00013009,2]
[419968413,1775571735002,-500.0,0.00013009,2]
[419968414,1775571735037,-500.0,0.00013009,2]
[419968415,1775571735073,-500.0,0.00013009,2]
[419968416,1775571735109,-500.0,0.00013009,2]
[419968417,1775571735146,-500.0,0.00013009,2]
[419968418,1775571735183,-532.04323843,0.00013009,2]
[419968419,1775571737123,-2761.37769041,0.0001301,2]
[419968420,1775571737164,-442.18717949,0.0001301,2]
[419968421,1775571737178,-250.9346766,0.0001301,2]
[419968422,1775571737204,-500.0,0.0001301,2]
[419968423,1775571737220,-500.0,0.0001301,2]
[419968424,1775571737240,-500.0,0.0001301,2]
[419968425,1775571737258,-500.0,0.0001301,2]
[419968426,1775571737286,-500.0,0.0001301,2]
[419968427,1775571737305,-500.0,0.0001301,2]
[419968428,1775571737324,-532.04323843,0.0001301,2]
[419968429,1775571737342,-1549.67981096,0.0001301,2]
[419968430,1775571737631,-10000.01,0.0001301,2]
[419968431,1775571737658,-10000.01,0.0001301,2]
[419968432,1775571737678,-10000.01,0.0001301,2]
[419968433,1775571737722,-10000.01,0.0001301,2]
[419968434,1775571737737,-10000.01,0.0001301,2]
[419968435,1775571737752,-10000.01,0.0001301,2]
[419968436,1775571737767,-10000.01,0.0001301,2]
[419968437,1775571742732,-10000.01,0.0001301,2]
[419968439,1775571748967,-10000.01,0.0001301,2]
[419968440,1775571751888,-10000.01,0.0001301,2]
[419968441,1775571752079,-10000.01,0.0001301,2]
[419968442,1775571752212,-10000.01,0.0001301,2]
[419968443,1775571752303,-10000.01,0.0001301,2]
[419968444,1775571752402,-10000.01,0.0001301,2]
[419968445,1775571754812,-10000.01,0.0001301,2]
[419968446,1775571757870,-10000.01,0.0001301,2]
[419968447,1775571757979,-212.44,0.00012664,2]
[419968448,1775571758018,-9575.13,0.0001301,2]
[419968449,1775571758099,-10000.01,0.0001301,2]
[419968450,1775571758214,-10000.01,0.0001301,2]
[419968451,1775571758391,-10000.01,0.0001301,2]
[419968452,1775571777207,200.0,0.000161,120]
[419968453,1775571808504,-150.0,0.00012762,2]
[419968454,1775571808686,-9700.01,0.0001301,2]
[419968455,1775571808706,-10000.01,0.0001301,2]
[419968456,1775571808724,-10000.01,0.0001301,2]
[419968457,1775571808747,-10000.01,0.0001301,2]
[419968458,1775571808774,-10000.01,0.0001301,2]
[419968459,1775571808789,-10000.01,0.0001301,2]
[419968460,1775571808805,-10000.01,0.0001301,2]
[419968461,1775571808841,-10000.01,0.0001301,2]
[419968462,1775571808860,-10000.01,0.0001301,2]
[419968463,1775571813509,-10000.01,0.0001301,2]
[419968464,1775571813623,-10000.01,0.0001301,2]
[419968465,1775571813739,-10000.01,0.0001301,2]
[419968466,1775571813940,-10000.01,0.0001301,2]
[419968467,1775571814101,-10000.01,0.0001301,2]
[419968468,1775571814219,-10000.01,0.0001301,2]
[419968469,1775571814863,-10000.01,0.0001301,2]
[419968470,1775571815037,-10000.01,0.0001301,2]
[419968471,1775571815072,-10000.01,0.0001301,2]
[419968472,1775571828548,10026.43816318,7.781e-05,7]
[419968473,1775571828576,125.57760018,7.781e-05,7]
[419968474,1775571835201,-10000.01,0.0001301,2]
[419968475,1775571835236,-10000.01,0.0001301,2]
[419968476,1775571835250,-10000.01,0.0001301,2]
[419968477,1775571840902,-10000.01,0.0001301,2]
[419968478,1775571842453,-300.0,0.00013009,2]
[419968479,1775571842542,-9700.01,0.0001301,2]
[419968480,1775571842557,-10000.01,0.0001301,2]
[419968481,1775571842571,-300.0,0.0001301,2]
[419968482,1775571842586,-9400.01,0.0001301,2]
[419968501,1775572234290,-841.60151792,0.00012265,2]
[419968502,1775572234340,-2666.33773602,0.00012265,2]
[419968503,1775572234388,-5766.00311484,0.00012265,2]
[419968504,1775572238323,-678.69,0.00012265,2]
[419968507,1775572238873,-17170.55763122,0.00012265,2]
[419968509,1775572238883,-894.2655022,0.0001291,2]
[419968511,1775572238892,-1030.424,0.0001291,2]
[419968513,1775572238902,-85257.1845,0.0001291,2]
[419968515,1775572238912,-6917.9102964,0.00012934,2]
[419968517,1775572238921,-1200.0,0.00012954,2]
[419968519,1775572238931,-150.0,0.00013009,2]
[419968520,1775572238941,-1000.0,0.00013009,2]
[419968521,1775572238950,-270.6378614,0.00013009,2]
[419968522,1775572238959,-475.2453636,0.00013009,2]
[419968523,1775572238969,-525.65427362,0.00013009,2]
[419968524,1775572238978,-154.0,0.0001301,3]
[419968525,1775572238989,-166.0,0.0001301,3]
[419968526,1775572239000,-151.0,0.0001301,3]
[419968527,1775572239010,-322.99289654,0.0001301,2]
[419968529,1775572239019,-750.0,0.0001301,7]
[419968531,1775572239028,-31947.99630368,0.0001301,2]
[419968547,1775572240942,-408232.43090043,0.0001301,2]
[419968548,1775572240952,-5000.0,0.0001301,2]
[419968549,1775572240963,-160.0,0.00013018,2]
[419968550,1775572240973,-500.0,0.0001308,2]
[419968551,1775572240984,-501.0,0.000131,2]
[419968552,1775572240994,-1235.18214925,0.00013102,2]
[419968553,1775572241004,-200.0,0.00013102,2]
[419968554,1775572241014,-151.0,0.00013102,2]
[419968555,1775572241024,-174.61919141,0.00013102,2]
[419968556,1775572241034,-799.54513345,0.00013102,2]
[419968557,1775572241044,-599.60298507,0.00013102,2]
[419968558,1775572241054,-411.57624402,0.00013102,2]
[419968559,1775572241063,-151.0,0.00013107,2]
[419968560,1775572241074,-1000.0,0.0001311,2]
[419968561,1775572241083,-500.0,0.00013135,2]
[419968562,1775572241093,-151.0,0.00013157,2]
[419968563,1775572241103,-4999.99,0.00013173,2]
[419968564,1775572241112,-9999.99,0.00013173,2]
[419968565,1775572241122,-7947.7,0.0001319,2]
[419968566,1775572241132,-7440.92,0.0001319,2]
[419968567,1775572241142,-6229.77,0.0001319,2]
[419968568,1775572241152,-150.99,0.0001319,2]
[419968569,1775572241162,-150.99,0.0001319,2]
[419968570,1775572241172,-999.99,0.0001319,2]
[419968571,1775572241182,-299.99,0.0001319,2]
[419968572,1775572241192,-500.0,0.0001319,2]
[419968573,1775572241202,-456.0,0.0001321,2]
[419968574,1775572241213,-151.0,0.00013212,2]
[419968575,1775572241223,-425.97643239,0.00013229,2]
[419968576,1775572241233,-6917.91029631,0.00013264,2]
[419968577,1775572241243,-3147.273027,0.000134,2]
[419968578,1775572241253,-3240.0,0.00013425,2]
[419968579,1775572241263,-150.0,0.00013425,2]
[419968580,1775572241273,-500.0,0.00013425,2]
[419968581,1775572241283,-150.0,0.00013425,2]
[419968582,1775572241294,-500.0,0.00013425,2]
[419968583,1775572241303,-150.0,0.00013425,2]
[419968584,1775572241313,-500.0,0.00013425,2]
[419968585,1775572241323,-181.70252141,0.00013425,2]
[419968586,1775572241333,-500.0,0.00013425,2]
[419968587,1775572241343,-500.0,0.00013425,2]
[419968588,1775572241353,-500.0,0.00013425,2]
[419968589,1775572241363,-500.0,0.00013425,2]
[419968590,1775572241374,-594.20670319,0.00013425,2]
[419968591,1775572241385,-500.0,0.00013425,2]
[419968592,1775572241396,-500.0,0.00013425,2]
[419968593,1775572241406,-500.0,0.00013425,2]
[419968594,1775572241416,-500.0,0.00013425,2]
[419968595,1775572241426,-500.0,0.00013425,2]
[419968596,1775572241436,-500.0,0.00013425,2]
[419968597,1775572241446,-500.0,0.00013425,2]
[419968598,1775572241456,-500.0,0.00013425,2]
[419968599,1775572241466,-500.0,0.00013425,2]
[419968600,1775572241476,-500.0,0.00013425,2]
[419968601,1775572241485,-500.0,0.00013425,2]
[419968602,1775572241495,-500.0,0.00013425,2]
[419968603,1775572241506,-397.72162059,0.00013425,2]
[419968604,1775572241516,-500.0,0.00013425,2]
[419968605,1775572241526,-500.0,0.00013425,2]
[419968606,1775572241536,-188.64365037,0.00013425,2]
[419968607,1775572241545,-385.20384257,0.00013425,2]
[419968608,1775572241555,-500.0,0.00013425,2]
[419968609,1775572241565,-500.0,0.00013425,2]
[419968610,1775572241575,-337.97015847,0.00013425,2]
[419968611,1775572241586,-249.61,0.00013425,2]
[419968612,1775572241597,-500.0,0.00013425,2]
[419968613,1775572241607,-500.0,0.00013425,2]
[419968615,1775572241617,-500.0,0.00013425,2]
[419968617,1775572241628,-500.0,0.00013425,2]
[419968618,1775572241639,-271.63434396,0.00013425,2]
[419968620,1775572241648,-322.99289654,0.00013492,2]
[419968622,1775572241659,-23010.3303587,0.0001357,2]
[419968624,1775572241669,-6917.91029631,0.00013593,2]
[419968626,1775572241679,-1280.88388878,0.0001365,2]
[419968628,1775572241690,-181.08010149,0.0001365,2]
[419968630,1775572241700,-194.83183622,0.0001365,2]
[419968632,1775572241711,-408.0,0.00013671,2]
[419968634,1775572241721,-500.0,0.00013673,2]
[419968636,1775572241731,-500.0,0.00013673,2]
[419968637,1775572241742,-159.88642084,0.00013673,2]
[419968639,1775572241752,-640.11403063,0.00013698,2]
[419968641,1775572241762,-500.0,0.00013698,2]
[419968642,1775572241772,-500.0,0.00013698,2]
[419968643,1775572241782,-500.0,0.00013698,2]
[419968644,1775572241793,-500.0,0.00013698,2]
[419968645,1775572241803,-500.0,0.00013698,2]
[419968646,1775572241813,-500.0,0.00013698,2]
[419968647,1775572241823,-500.0,0.00013698,2]
[419968649,1775572241834,-500.0,0.00013698,2]
[419968651,1775572241844,-500.0,0.00013698,2]
[419968653,1775572241855,-164.80173105,0.00013698,2]
[419968655,1775572241865,-500.0,0.00013698,2]
[419968656,1775572241875,-414.45413947,0.00013698,2]
[419968657,1775572241886,-500.0,0.00013698,2]
[419968658,1775572241896,-500.0,0.00013698,2]
[419968659,1775572241906,-500.0,0.00013698,2]
[419968660,1775572241918,-500.0,0.00013698,2]
[419968661,1775572241929,-500.0,0.00013698,2]
[419968662,1775572241939,-500.0,0.00013698,2]
[419968663,1775572241950,-500.0,0.00013698,2]
[419968664,1775572241960,-500.0,0.00013698,2]
[419968665,1775572241970,-500.0,0.00013698,2]
[419968666,1775572241980,-500.0,0.00013698,2]
[419968667,1775572241990,-500.0,0.00013698,2]
[419968668,1775572241999,-500.0,0.00013698,2]
[419968669,1775572242009,-150.0,0.00013699,2]
[419968670,1775572242019,-150.0,0.00013699,2]
[419968671,1775572242029,-180.0,0.00013699,2]
[419968672,1775572242039,-150.0,0.00013699,2]
[419968673,1775572242049,-501.02973938,0.00013699,2]
[419968674,1775572242058,-500.0,0.00013699,2]
[419968675,1775572242068,-500.0,0.00013699,2]
[419968676,1775572242078,-501.19620744,0.00013699,2]
[419968677,1775572242088,-500.0,0.00013699,2]
[419968678,1775572242098,-500.0,0.00013699,2]
[419968679,1775572242108,-189.95993746,0.00013699,2]
[419968680,1775572242117,-500.0,0.00013699,2]
[419968681,1775572242127,-500.0,0.00013699,2]
[419968682,1775572242135,-500.0,0.00013699,2]
[419968683,1775572242145,-180.21187415,0.00013699,2]
[419968684,1775572242154,-500.0,0.00013699,2]
[419968685,1775572242164,-500.0,0.00013699,2]
[419968686,1775572242174,-500.0,0.00013699,2]
[419968687,1775572242184,-500.0,0.00013699,2]
[419968688,1775572242194,-500.0,0.00013699,2]
[419968689,1775572242205,-337.90453598,0.00013699,2]
[419968690,1775572242215,-500.0,0.00013699,2]
[419968691,1775572242225,-184.64,0.00013699,2]
[419968692,1775572242235,-249.61,0.00013699,2]
[419968693,1775572242245,-500.0,0.00013699,2]
[419968694,1775572242254,-500.0,0.00013699,2]
[419968695,1775572242265,-500.0,0.00013699,2]
[419968696,1775572242275,-500.0,0.00013699,2]
[419968697,1775572242285,-500.0,0.00013699,2]
[419968698,1775572242295,-500.0,0.00013699,2]
[419968699,1775572242305,-500.0,0.00013699,2]
[419968700,1775572242315,-500.0,0.00013699,2]
[419968701,1775572242325,-305.85122809,0.00013699,2]
[419968702,1775572242334,-186998.28132846,0.000137,2]
[419968703,1775572242499,-500.0,0.00012909,2]
[419968704,1775572242509,-190.77370002,0.00012909,2]
[419968737,1775572246403,-76.75521372,0.00012909,2]
[419968738,1775572246414,-500.0,0.00012909,2]
[419968739,1775572246424,-499.24907165,0.00012909,2]
[419968740,1775572246435,-894.26550218,0.00013337,2]
[419968741,1775572246445,-750.8877587,0.000137,2]
[419968742,1775572246458,-1366.37845132,0.000137,2]
[419968743,1775572246613,-150.0,0.00013699,2]
[419968744,1775572246624,-405.48318851,0.000137,2]
[419968779,1775572249376,-9165.48550336,0.000137,2]
[419968783,1775572373226,200.0,0.00015678,120]
[419968784,1775572432548,1240.97,6.506e-05,2]
[419968785,1775572432596,1240.97,6.848e-05,2]
[419968786,1775572432926,1240.97,7.191e-05,2]
[419968787,1775572433042,1240.97,7.533e-05,2]
[419968788,1775572433264,1240.97,7.875e-05,2]
[419968789,1775572433813,1240.97,8.218e-05,2]
[419968790,1775572434037,1240.97,8.56e-05,2]
[419968791,1775572434258,1240.97,8.903e-05,2]
[419968792,1775572434491,72.25,9.245e-05,2]
[419968793,1775572434520,1168.72,9.245e-05,2]
[419968794,1775572434719,1240.97,9.587e-05,2]
[419968795,1775572434940,1240.97,9.93e-05,2]
[419968796,1775572435164,1240.97,0.00010272,2]
[419968797,1775572435374,1240.97,0.00010615,2]
[419968798,1775572446927,155.0,0.0001079,2]
[419968799,1775572449268,151.0,0.0001079,2]
[419968800,1775572506290,155.0,0.00010797,2]
[419968801,1775572506944,166.0,0.00010797,2]
[419968802,1775572508844,151.0,0.00010797,2]
[419968803,1775572572448,155.0,0.00010797,2]
[419968804,1775572627163,155.0,0.00010797,2]
[419968805,1775572628668,151.0,0.00010797,2]
[419968806,1775572688813,151.0,0.00010797,2]
[419968808,1775572749504,151.0,0.00010797,2]
[419968810,1775572811061,166.0,0.00010797,2]
[419968811,1775572811918,152.0,0.00010797,2]
[419968814,1775572868009,152.0,0.00010797,2]
[419968815,1775572891044,-1240.97,0.00010957,2]
[419968816,1775572982488,20030.03,0.000109,2]
[419968817,1775572988492,152.0,0.00010797,2]
[419968818,1775573108181,166.0,0.00010799,2]
[419968819,1775573361886,201.0,9.989e-05,2]
[419968820,1775573367697,-300.0,0.00010898,2]
[419968821,1775573367720,-300.0,0.00010898,2]
[419968822,1775573367743,-1149.0,0.00010898,2]
[419968823,1775573367766,-300.0,0.00010899,2]
[419968824,1775573367791,-1200.0,0.00010899,2]
[419968825,1775573367816,-300.0,0.00010899,2]
[419968826,1775573367840,-150.0,0.00010899,2]
[419968827,1775573367864,-1527.207504,0.000109,2]
[419968836,1775573431725,-300.0,0.00010899,2]
[419968837,1775573431736,-300.0,0.00010899,2]
[419968838,1775573431748,-550.0,0.00010899,2]
[419968839,1775573431761,-489.0,0.00010899,2]
[419968840,1775573431772,-300.0,0.00010899,2]
[419968841,1775573431781,-990.48256209,0.000109,2]
[419968842,1775573431795,-1000.0,0.000109,2]
[419968843,1775573431807,-6452.27993391,0.000109,2]
[419968844,1775573431817,-12274.13724521,0.000109,2]
[419968860,1775573438913,-7725.86275479,0.000109,2]
[419968861,1775573438923,-1240.97,0.000113,2]
[419968862,1775573438933,-150.0,0.00011614,2]
[419968863,1775573438943,-150.0,0.00011614,2]
[419968864,1775573438952,-150.0,0.00011614,2]
[419968865,1775573438961,-150.0,0.00011614,2]
[419968866,1775573438971,-150.0,0.00011614,2]
[419968867,1775573438981,-150.0,0.00011614,2]
[419968868,1775573438990,-150.0,0.00011614,2]
[419968869,1775573439000,-150.0,0.00011614,2]
[419968870,1775573439009,-150.0,0.00011614,2]
[419968871,1775573439019,-150.0,0.00011614,2]
[419968872,1775573439029,-1240.97,0.00011642,2]
[419968873,1775573439039,-150.0,0.00011653,2]
[419968874,1775573439048,-150.0,0.0001167,2]
[419968875,1775573439058,-150.0,0.00011678,2]
[419968876,1775573439068,-150.0,0.00011682,2]
[419968877,1775573439078,-150.0,0.00011685,2]
[419968878,1775573439088,-150.0,0.00011692,2]
[419968879,1775573439098,-150.0,0.00011726,2]
[419968880,1775573439107,-150.0,0.00011731,2]
[419968881,1775573439117,-150.0,0.00011743,2]
[419968882,1775573439127,-150.0,0.00011743,2]
[419968883,1775573439138,-150.0,0.0001175,2]
[419968884,1775573439149,-150.0,0.00011757,2]
[419968885,1775573439159,-150.0,0.0001177,2]
[419968886,1775573439169,-150.0,0.00011775,2]
[419968887,1775573439179,-150.0,0.00011782,2]
[419968888,1775573439188,-150.0,0.00011807,2]
[419968889,1775573439197,-150.0,0.00011809,2]
[419968890,1775573439207,-150.0,0.00011817,2]
[419968891,1775573439216,-150.0,0.00011829,2]
[419968892,1775573439226,-150.0,0.00011829,2]
[419968893,1775573439237,-150.0,0.00011838,2]
[419968894,1775573439246,-150.0,0.00011848,2]
[419968895,1775573439256,-150.0,0.00011872,2]
[419968896,1775573439265,-150.0,0.00011872,2]
[419968897,1775573439275,-164.24,0.00011885,2]
[419968898,1775573439284,-150.0,0.00011885,2]
[419968899,1775573439294,-150.0,0.00011887,2]
[419968900,1775573439304,-150.0,0.00011894,2]
[419968901,1775573439314,-150.0,0.000119,2]
[419968902,1775573439324,-150.0,0.00011927,2]
[419968903,1775573439335,-150.0,0.00011936,2]
[419968904,1775573439345,-150.0,0.00011936,2]
[419968905,1775573439355,-255.0,0.00011945,2]
[419968906,1775573439366,-150.0,0.0001195,2]
[419968907,1775573439375,-150.0,0.00011953,2]
[419968908,1775573439385,-150.0,0.00011966,2]
[419968909,1775573439394,-150.0,0.00011972,2]
[419968910,1775573439404,-205.0,0.00011978,2]
[419968911,1775573439414,-420.0,0.00011978,2]
[419968912,1775573439423,-1240.97,0.00011984,2]
[419968913,1775573439433,-600.0,0.00011988,2]
[419968914,1775573439442,-150.0,0.00012001,2]
[419968915,1775573439452,-150.0,0.00012001,2]
[419968916,1775573439462,-150.0,0.00012005,2]
[419968917,1775573439473,-150.0,0.00012006,2]
[419968918,1775573439483,-150.0,0.00012021,2]
[419968919,1775573439493,-150.0,0.00012044,2]
[419968920,1775573439503,-150.0,0.00012044,2]
[419968921,1775573439513,-150.0,0.00012044,2]
[419968922,1775573439523,-150.0,0.00012063,2]
[419968923,1775573439532,-150.0,0.00012065,2]
[419968924,1775573439542,-150.0,0.00012083,2]
[419968925,1775573439552,-150.0,0.00012089,2]
[419968926,1775573439561,-150.0,0.00012098,2]
[419968927,1775573439570,-1600.0,0.00012104,2]
[419968928,1775573439580,-150.0,0.00012116,2]
[419968929,1775573439590,-150.0,0.00012119,2]
[419968930,1775573439600,-150.0,0.00012122,2]
[419968931,1775573439609,-150.0,0.0001213,2]
[419968932,1775573439619,-150.0,0.0001213,2]
[419968933,1775573439629,-150.0,0.00012157,2]
[419968934,1775573439639,-150.0,0.00012161,2]
[419968935,1775573439649,-150.0,0.00012175,2]
[419968936,1775573439658,-160.0,0.00012186,2]
[419968937,1775573439668,-638.678009,0.00012186,2]
[419968938,1775573439679,-1117.356019,0.00012186,2]
[419968939,1775573439689,-150.0,0.00012187,2]
[419968940,1775573439700,-150.0,0.00012194,2]
[419968941,1775573439711,-150.0,0.000122,2]
[419968942,1775573439721,-150.0,0.000122,2]
[419968943,1775573439731,-500.0,0.00012223,2]
[419968944,1775573439742,-500.0,0.00012223,2]
[419968945,1775573439753,-500.0,0.00012223,2]
[419968946,1775573439763,-500.0,0.00012223,2]
[419968947,1775573439773,-500.0,0.00012223,2]
[419968948,1775573439783,-500.0,0.00012223,2]
[419968949,1775573439794,-500.0,0.00012223,2]
[419968950,1775573439803,-500.0,0.00012223,2]
[419968952,1775573439814,-500.0,0.00012223,2]
[419968953,1775573439823,-500.0,0.00012223,2]
[419968954,1775573439835,-500.0,0.00012223,2]
[419968955,1775573439845,-620.56265949,0.00012223,2]
[419968956,1775573439855,-500.0,0.00012223,2]
[419968957,1775573439866,-500.0,0.00012223,2]
[419968958,1775573439876,-500.0,0.00012223,2]
[419968959,1775573439888,-500.0,0.00012223,2]
[419968960,1775573439898,-500.0,0.00012223,2]
[419968962,1775573439908,-500.0,0.00012223,2]
[419968963,1775573439917,-500.0,0.00012223,2]
[419968964,1775573439927,-500.0,0.00012223,2]
[419968965,1775573439937,-500.0,0.00012223,2]
[419968966,1775573439947,-500.0,0.00012223,2]
[419968967,1775573439956,-500.0,0.00012223,2]
[419968968,1775573439966,-500.0,0.00012223,2]
[419968969,1775573439976,-500.0,0.00012223,2]
[419968970,1775573439986,-500.0,0.00012223,2]
[419968971,1775573439997,-500.0,0.00012223,2]
[419968972,1775573440006,-500.0,0.00012223,2]
[419968973,1775573440017,-500.0,0.00012223,2]
[419968974,1775573440027,-500.0,0.00012223,2]
[419968975,1775573440037,-500.0,0.00012223,2]
[419968976,1775573440047,-500.0,0.00012223,2]
[419968977,1775573440058,-500.0,0.00012223,2]
[419968978,1775573440069,-500.0,0.00012223,2]
[419968979,1775573440079,-186.97447771,0.00012223,2]
[419968980,1775573440090,-288.64029142,0.00012223,2]
[419968981,1775573440100,-9999.99,0.00012224,2]
[419968982,1775573440110,-299.99,0.00012224,2]
[419968983,1775573440120,-150.99,0.00012224,2]
[419968984,1775573440130,-999.99,0.00012224,2]
[419968985,1775573440140,-7947.7,0.00012224,2]
[419968986,1775573440151,-9999.99,0.00012224,2]
[419968987,1775573440161,-6229.77,0.00012224,2]
[419968988,1775573440172,-4999.99,0.00012224,2]
[419968989,1775573440182,-2117.51,0.00012224,2]
[419968990,1775573440193,-7440.92,0.00012224,2]
[419968991,1775573440203,-150.99,0.00012224,2]
[419968992,1775573440212,-204.192993,0.00012224,2]
[419968993,1775573440223,-160.0,0.00012224,2]
[419968994,1775573440233,-1010.098827,0.00012224,2]
[419968995,1775573440243,-1860.197654,0.00012224,2]
[419968996,1775573440253,-450.144279,0.00012224,2]
[419968997,1775573440263,-160.0,0.00012224,2]
[419968998,1775573440273,-1256.533676,0.00012224,2]
[419968999,1775573440284,-2353.067352,0.00012224,2]
[419969000,1775573440294,-160.0,0.00012224,2]
[419969001,1775573440304,-2114.248056,0.00012224,2]
[419969002,1775573440314,-4068.496113,0.00012224,2]
[419969003,1775573440323,-160.0,0.00012224,2]
[419969004,1775573440333,-163.725252,0.00012224,2]
[419969005,1775573440343,-167.450504,0.00012224,2]
[419969006,1775573440353,-2000.0,0.00012225,2]
[419969007,1775573440363,-150.0,0.00012225,2]
[419969008,1775573440372,-150.0,0.00012231,2]
[419969009,1775573440383,-150.0,0.00012239,2]
[419969010,1775573440393,-150.0,0.00012259,2]
[419969011,1775573440402,-150.0,0.00012259,2]
[419969012,1775573440411,-150.0,0.00012259,2]
[419969013,1775573440420,-150.0,0.00012259,2]
[419969014,1775573440429,-150.0,0.00012259,2]
[419969015,1775573440439,-150.0,0.00012278,2]
[419969016,1775573440449,-150.0,0.00012287,2]
[419969017,1775573440459,-150.0,0.00012293,2]
[419969018,1775573440469,-150.0,0.00012318,2]
[419969019,1775573440478,-150.0,0.00012323,2]
[419969020,1775573440488,-1240.97,0.00012327,2]
[419969021,1775573440498,-150.0,0.00012331,2]
[419969022,1775573440508,-150.0,0.00012343,2]
[419969023,1775573440518,-150.0,0.00012357,2]
[419969024,1775573440528,-150.0,0.00012361,2]
[419969025,1775573440538,-150.0,0.00012388,2]
[419969026,1775573440548,-150.0,0.00012388,2]
[419969027,1775573440558,-150.0,0.00012396,2]
[419969028,1775573440567,-150.0,0.00012399,2]
[419969029,1775573440578,-150.0,0.00012402,2]
[419969030,1775573440587,-150.0,0.0001242,2]
[419969031,1775573440597,-166.66,0.00012426,2]
[419969032,1775573440607,-150.0,0.00012429,2]
[419969033,1775573440616,-150.0,0.00012435,2]
[419969034,1775573440627,-150.0,0.00012452,2]
[419969035,1775573440637,-150.0,0.00012455,2]
[419969036,1775573440647,-150.0,0.00012474,2]
[419969037,1775573440657,-150.0,0.00012474,2]
[419969038,1775573440667,-150.0,0.00012474,2]
[419969039,1775573440677,-150.0,0.00012497,2]
[419969040,1775573440686,-150.0,0.00012511,2]
[419969041,1775573440696,-150.0,0.00012513,2]
[419969042,1775573440706,-150.0,0.00012517,2]
[419969043,1775573440715,-150.0,0.00012517,2]
[419969044,1775573440726,-150.0,0.00012546,2]
[419969045,1775573440736,-150.0,0.00012552,2]
[419969046,1775573440746,-150.0,0.00012565,2]
[419969047,1775573440756,-150.0,0.00012567,2]
[419969048,1775573440766,-150.0,0.00012582,2]
[419969049,1775573440776,-150.0,0.00012582,2]
[419969050,1775573440786,-150.0,0.00012591,2]
[419969051,1775573440796,-150.0,0.00012617,2]
[419969052,1775573440806,-150.0,0.00012624,2]
[419969053,1775573440816,-150.0,0.0001263,2]
[419969054,1775573440826,-150.0,0.00012632,2]
[419969055,1775573440836,-150.0,0.00012646,2]
[419969056,1775573440847,-150.0,0.00012646,2]